lending/lending_fUSD_20250819
["ID","MTS","AMOUNT","RATE_DAILY","PERIOD"]
[380171787,1755593287661,-1100.0,0.000251,30]
[380171788,1755593287692,-1100.0,0.000251,30]
[380171789,1755593287723,-2200.0,0.000251,30]
[380171790,1755593287756,-500.0,0.000251,30]
[380171791,1755593287787,-1100.0,0.000251,30]
[380171792,1755593287818,-1100.0,0.000251,30]
[380171793,1755593287849,-2200.0,0.000251,30]
[380171794,1755593287882,-1100.0,0.000251,30]
[380171795,1755593287915,-2200.0,0.000251,30]
[380171796,1755593287950,-500.0,0.000251,30]
[380171797,1755593287983,-500.0,0.000251,30]
[380171798,1755593288015,-1100.0,0.000251,30]
[380171799,1755593288047,-2200.0,0.000251,30]
[380171800,1755593288079,-500.0,0.000251,30]
[380171801,1755593288112,-500.0,0.000251,30]
[380171802,1755593288148,-1100.0,0.000251,30]
[380171803,1755593288183,-2200.0,0.000251,30]
[380171804,1755593288216,-500.0,0.000251,30]
[380171805,1755593288250,-500.0,0.000251,30]
[380171806,1755593288286,-500.0,0.000251,30]
[380171807,1755593288321,-500.0,0.000251,30]
[380171808,1755593288358,-500.0,0.000251,30]
[380171809,1755593288396,-500.7,0.000251,30]
[380171810,1755593288433,-500.0,0.000251,30]
[380171811,1755593288467,-500.0,0.000251,30]
[380171812,1755593288502,-500.0,0.000251,30]
[380171813,1755593288536,-195.93747568,0.000251,30]
[380171814,1755593288569,-1400.0,0.000251,30]
[380171815,1755593288602,-1400.0,0.000251,30]
[380171816,1755593288635,-1400.0,0.000251,30]
[380171817,1755593288667,-1400.0,0.000251,30]
[380171818,1755593288703,-500.0,0.000251,30]
[380171819,1755593288735,-1400.0,0.000251,30]
[380171820,1755593288769,-1400.0,0.000251,30]
[380171821,1755593288801,-1400.0,0.000251,30]
[380171822,1755593288833,-1400.0,0.000251,30]
[380171823,1755593288865,-1400.0,0.000251,30]
[380171824,1755593288897,-1400.0,0.000251,30]
[380171825,1755593289326,-1400.0,0.000251,30]
[380171826,1755593289364,-1400.0,0.000251,30]
[380171827,1755593289401,-1400.0,0.000251,30]
[380171828,1755593289438,-1400.0,0.000251,30]
[380171829,1755593289473,-500.0,0.000251,30]
[380171830,1755593289506,-839.56183132,0.000251,30]
[380171831,1755593289538,-461.288731,0.000251,30]
[380171832,1755593289570,-500.0,0.000251,30]
[380171833,1755593289608,-150.0,0.00025543,30]
[380171834,1755593289642,-150.0,0.00025552,120]
[380171835,1755593289676,-500.0,0.00025894,120]
[380171836,1755593289712,-150.0,0.00025923,120]
[380171837,1755593289747,-150.0,0.00026091,30]
[380171838,1755593289781,-150.0,0.00026469,120]
[380171839,1755593289815,-150.0,0.00026639,30]
[380171840,1755593289850,-3117.34,0.00027,30]
[380171841,1755593289890,-200.0,0.00027122,30]
[380171842,1755593289929,-500.0,0.00027159,120]
[380171843,1755593289972,-150.0,0.00027187,30]
[380171844,1755593290007,-657.0,0.00027397,30]
[380171845,1755593290039,-732.0,0.00027397,30]
[380171846,1755593290074,-600.0,0.00027397,80]
[380171847,1755593290110,-150.0,0.00027735,30]
[380171848,1755593290151,-150.0,0.00027844,120]
[380171849,1755593290193,-245.7910485,0.00028,60]
[380171850,1755593290230,-150.0,0.00028046,120]
[380171851,1755593290265,-2960.44,0.00028169,30]
[380171852,1755593290298,-150.0,0.00028283,30]
[380171853,1755593290332,-150.0,0.00028419,120]
[380171854,1755593290365,-500.0,0.00028424,120]
[380171855,1755593290398,-3133.02,0.00028493,30]
[380171856,1755593290431,-150.0,0.00028522,120]
[380171857,1755593290464,-150.0,0.00028557,120]
[380171858,1755593290498,-150.0,0.00028572,120]
[380171859,1755593290532,-1108.5,0.000286,30]
[380171860,1755593290568,-200.0,0.00028658,30]
[380171861,1755593290601,-150.0,0.00028831,30]
[380171862,1755593290636,-150.0,0.00028977,120]
[380171863,1755593290667,-3600.0,0.00029,30]
[380171864,1755593290700,-367.0,0.00029,30]
[380171865,1755593290734,-305.0,0.00029,30]
[380171866,1755593290768,-733.0,0.00029,30]
[380171867,1755593290802,-1444.0,0.00029041,120]
[380171868,1755593290837,-150.0,0.00029082,120]
[380171869,1755593290871,-2222.22,0.00029328,30]
[380171870,1755593290904,-150.0,0.00029365,120]
[380171871,1755593290935,-150.0,0.00029378,30]
[380171872,1755593290967,-150.0,0.00029436,120]
[380171873,1755593290999,-500.0,0.00029689,120]
[380171874,1755593291035,-1108.5,0.000299,30]
[380171875,1755593291069,-150.0,0.00029926,30]
[380171876,1755593291103,-150.0,0.0002994,120]
[380171877,1755593291141,-206.0,0.0003,30]
[380171878,1755593291176,-3600.0,0.0003,31]
[380171879,1755593291213,-150.0,0.0003,30]
[380171880,1755593291249,-854.69904562,0.0003,30]
[380171881,1755593291285,-989.91031186,0.0003,60]
[380171882,1755593291318,-334.3996095,0.0003,60]
[380171883,1755593291354,-213.12,0.0003,90]
[380171884,1755593291394,-843.78711038,0.0003,30]
[380171885,1755593291434,-160.0,0.0003,30]
[380171886,1755593291468,-367.0,0.0003,30]
[380171887,1755593291501,-305.0,0.0003,30]
[380171888,1755593291534,-843.87140665,0.0003,30]
[380171889,1755593291566,-733.0,0.0003,30]
[380171890,1755593291601,-1623.61935688,0.0003013,30]
[380171891,1755593291633,-400.0,0.00030136,30]
[380171892,1755593291664,-160.96,0.00030136,120]
[380171893,1755593291695,-400.0,0.00030136,120]
[380171894,1755593291727,-400.0,0.00030136,120]
[380171895,1755593291760,-400.0,0.00030136,120]
[380171896,1755593291792,-400.0,0.00030136,120]
[380171897,1755593291824,-400.0,0.00030136,120]
[380171898,1755593291858,-400.0,0.00030136,120]
[380171899,1755593291891,-400.0,0.00030136,120]
[380171900,1755593291922,-400.0,0.00030136,120]
[380171901,1755593291954,-400.0,0.00030136,120]
[380171902,1755593292105,-400.0,0.00030136,120]
[380171903,1755593292144,-400.0,0.00030136,120]
[380171904,1755593292181,-400.0,0.00030136,120]
[380171905,1755593292217,-400.0,0.00030136,120]
[380171906,1755593292249,-400.0,0.00030136,120]
[380171907,1755593292280,-400.0,0.00030136,120]
[380171908,1755593292313,-400.0,0.00030136,120]
[380171909,1755593292345,-400.0,0.00030136,120]
[380171910,1755593292379,-400.0,0.00030136,120]
[380171911,1755593292412,-400.0,0.00030136,120]
[380171912,1755593292444,-400.0,0.00030136,120]
[380171913,1755593292475,-400.0,0.00030136,120]
[380171914,1755593292507,-161.118368,0.00030136,120]
[380171915,1755593292539,-400.0,0.00030136,120]
[380171916,1755593292573,-400.0,0.00030136,120]
[380171917,1755593292605,-400.0,0.00030136,120]
[380171918,1755593292636,-400.0,0.00030136,120]
[380171919,1755593292669,-400.0,0.00030136,120]
[380171920,1755593292702,-400.0,0.00030136,120]
[380171921,1755593292734,-400.0,0.00030136,120]
[380171922,1755593292767,-400.0,0.00030136,120]
[380171923,1755593292800,-400.0,0.00030136,120]
[380171924,1755593292832,-365.66772108,0.00030136,120]
[380171925,1755593292863,-400.0,0.00030136,120]
[380171926,1755593292895,-454.50680142,0.00030136,120]
[380171927,1755593292926,-400.0,0.00030136,120]
[380171928,1755593292959,-400.0,0.00030136,120]
[380171929,1755593292991,-400.0,0.00030136,120]
[380171930,1755593293023,-400.0,0.00030136,120]
[380171931,1755593293055,-400.0,0.00030136,120]
[380171932,1755593293087,-400.0,0.00030136,120]
[380171933,1755593293120,-400.0,0.00030136,120]
[380171934,1755593293154,-400.0,0.00030136,120]
[380171935,1755593293190,-400.0,0.00030136,120]
[380171936,1755593293224,-400.0,0.00030136,120]
[380171937,1755593293258,-400.0,0.00030136,120]
[380171938,1755593293292,-400.0,0.00030136,120]
[380171939,1755593293328,-400.0,0.00030136,120]
[380171940,1755593293364,-400.0,0.00030136,120]
[380171941,1755593293401,-1559.24,0.00030136,120]
[380171942,1755593293438,-630.12,0.00030136,120]
[380171943,1755593293473,-400.0,0.00030136,120]
[380171944,1755593293510,-400.0,0.00030136,120]
[380171945,1755593293543,-400.0,0.00030136,120]
[380171946,1755593293574,-400.0,0.00030136,120]
[380171947,1755593293605,-400.0,0.00030136,120]
[380171948,1755593293636,-2429.31,0.00030136,120]
[380171949,1755593293669,-400.0,0.00030136,120]
[380171950,1755593293704,-400.0,0.00030136,120]
[380171951,1755593293738,-400.0,0.00030136,120]
[380171952,1755593293771,-400.0,0.00030136,120]
[380171953,1755593293803,-603.25,0.00030136,120]
[380171954,1755593293834,-400.0,0.00030136,120]
[380171955,1755593293866,-400.0,0.00030136,120]
[380171956,1755593293899,-2088.35,0.00030136,120]
[380171957,1755593293931,-400.0,0.00030136,120]
[380171958,1755593293964,-400.0,0.00030136,120]
[380171959,1755593293995,-400.0,0.00030136,120]
[380171960,1755593294027,-622.96,0.00030136,120]
[380171961,1755593294058,-1286.88,0.00030136,120]
[380171962,1755593294090,-409.3,0.00030136,120]
[380171963,1755593294124,-400.0,0.00030136,120]
[380171964,1755593294157,-400.0,0.00030136,120]
[380171965,1755593294193,-1808.11,0.00030136,120]
[380171966,1755593294227,-400.0,0.00030136,120]
[380171967,1755593294263,-400.0,0.00030136,120]
[380171968,1755593294299,-400.0,0.00030136,120]
[380171969,1755593294335,-453.86553916,0.00030136,120]
[380171970,1755593294370,-400.0,0.00030136,120]
[380171971,1755593294405,-1057.26,0.00030136,120]
[380171972,1755593294440,-989.65,0.00030136,120]
[380171973,1755593294474,-400.0,0.00030136,120]
[380171974,1755593294509,-400.0,0.00030136,120]
[380171975,1755593294542,-400.0,0.00030136,120]
[380171976,1755593294576,-487.26,0.00030136,120]
[380171977,1755593294609,-434.18,0.00030136,120]
[380171978,1755593294641,-449.3,0.00030136,120]
[380171979,1755593294675,-500.0,0.00030136,120]
[380171980,1755593294710,-500.0,0.00030136,120]
[380171981,1755593294742,-500.0,0.00030136,120]
[380171982,1755593294776,-963.75,0.00030136,120]
[380171983,1755593294810,-500.0,0.00030136,120]
[380171984,1755593294843,-400.0,0.00030136,120]
[380171985,1755593294878,-540.5683205,0.00030136,120]
[380171986,1755593294913,-400.0,0.00030136,120]
[380171987,1755593294946,-1038.16,0.00030136,120]
[380171988,1755593294981,-400.0,0.00030136,120]
[380171989,1755593295015,-400.0,0.00030136,120]
[380171990,1755593295051,-400.0,0.00030136,120]
[380171991,1755593295087,-400.0,0.00030136,120]
[380171992,1755593295124,-1772.41,0.00030136,120]
[380171993,1755593295161,-400.0,0.00030136,120]
[380171994,1755593295197,-2038.79,0.00030136,120]
[380171995,1755593295232,-400.0,0.00030136,120]
[380171996,1755593295267,-782.53,0.00030136,120]
[380171997,1755593295302,-400.0,0.00030136,120]
[380171998,1755593295336,-2665.9,0.00030136,120]
[380171999,1755593295370,-734.21,0.00030136,120]
[380172000,1755593295404,-400.0,0.00030136,120]
[380172001,1755593295438,-400.0,0.00030136,120]
[380172002,1755593295471,-400.0,0.00030136,120]
[380172003,1755593295503,-400.0,0.00030136,120]
[380172004,1755593295537,-400.0,0.00030136,120]
[380172005,1755593295570,-1954.46,0.00030136,120]
[380172006,1755593295602,-400.0,0.00030136,120]
[380172007,1755593295634,-465.8,0.00030136,120]
[380172008,1755593295668,-1324.75,0.00030136,120]
[380172009,1755593295703,-400.0,0.00030136,120]
[380172010,1755593295741,-2085.08,0.00030136,120]
[380172011,1755593295777,-400.0,0.00030136,120]
[380172012,1755593295810,-1230.05,0.00030136,120]
[380172013,1755593295845,-400.0,0.00030136,120]
[380172014,1755593295879,-872.28,0.00030136,120]
[380172015,1755593295913,-1949.52,0.00030136,120]
[380172016,1755593295947,-2474.7,0.00030136,120]
[380172017,1755593295982,-1782.95,0.00030136,120]
[380172018,1755593296185,-495.69,0.00030136,120]
[380172019,1755593296223,-2175.09,0.00030136,120]
[380172020,1755593296259,-400.0,0.00030136,120]
[380172021,1755593296295,-2070.68,0.00030136,120]
[380172022,1755593296331,-730.48,0.00030136,120]
[380172023,1755593296366,-400.0,0.00030136,120]
[380172024,1755593296400,-546.93,0.00030136,120]
[380172025,1755593296436,-400.0,0.00030136,120]
[380172026,1755593296474,-400.0,0.00030136,120]
[380172027,1755593296517,-450.34,0.00030136,120]
[380172028,1755593296557,-2214.34,0.00030136,120]
[380172029,1755593296594,-1800.95,0.00030136,120]
[380172030,1755593296627,-521.24,0.00030136,120]
[380172031,1755593296662,-400.0,0.00030136,120]
[380172032,1755593296697,-1028.34,0.00030136,120]
[380172033,1755593296731,-891.15,0.00030136,120]
[380172034,1755593296763,-1529.27,0.00030136,120]
[380172035,1755593296810,-400.0,0.00030136,120]
[380172036,1755593296843,-400.0,0.00030136,120]
[380172037,1755593296877,-1028.71,0.00030136,120]
[380172038,1755593296911,-400.0,0.00030136,120]
[380172039,1755593296943,-905.89,0.00030136,120]
[380172040,1755593296976,-400.0,0.00030136,120]
[380172041,1755593297010,-400.0,0.00030136,120]
[380172042,1755593297044,-1033.64,0.00030136,120]
[380172043,1755593297077,-885.31,0.00030136,120]
[380172044,1755593297112,-1683.11,0.00030136,120]
[380172045,1755593297148,-400.0,0.00030136,120]
[380172046,1755593297184,-400.0,0.00030136,120]
[380172047,1755593297222,-400.0,0.00030136,120]
[380172048,1755593297257,-2186.53,0.00030136,120]
[380172049,1755593297294,-423.6,0.00030136,120]
[380172050,1755593297330,-587.66,0.00030136,120]
[380172051,1755593297367,-1289.7,0.00030136,120]
[380172052,1755593297403,-400.0,0.00030136,120]
[380172053,1755593297441,-732.91,0.00030136,120]
[380172054,1755593297476,-400.0,0.00030136,120]
[380172055,1755593297518,-400.0,0.00030136,120]
[380172056,1755593297554,-400.0,0.00030136,120]
[380172057,1755593297591,-400.0,0.00030136,120]
[380172058,1755593297628,-400.0,0.00030136,120]
[380172059,1755593297664,-400.0,0.00030136,120]
[380172060,1755593297707,-400.0,0.00030136,120]
[380172061,1755593297763,-1132.67,0.00030136,120]
[380172062,1755593297799,-400.0,0.00030136,120]
[380172063,1755593297835,-428.71,0.00030136,120]
[380172064,1755593297869,-1953.16,0.00030136,120]
[380172065,1755593297904,-400.0,0.00030136,120]
[380172066,1755593297939,-504.88,0.00030136,120]
[380172067,1755593297973,-922.73,0.00030136,120]
[380172068,1755593298009,-2539.7,0.00030136,120]
[380172069,1755593298049,-400.0,0.00030136,120]
[380172070,1755593298091,-400.0,0.00030136,120]
[380172071,1755593298136,-400.0,0.00030136,120]
[380172072,1755593298177,-400.0,0.00030136,120]
[380172073,1755593298219,-1684.12,0.00030136,120]
[380172074,1755593298265,-400.0,0.00030136,120]
[380172075,1755593298306,-400.0,0.00030136,120]
[380172076,1755593298347,-1213.7,0.00030136,120]
[380172077,1755593298389,-400.0,0.00030136,120]
[380172078,1755593298430,-400.0,0.00030136,120]
[380172079,1755593298469,-400.0,0.00030136,120]
[380172080,1755593298507,-676.18,0.00030136,120]
[380172081,1755593298546,-412.24,0.00030136,120]
[380172082,1755593298583,-556.33,0.00030136,120]
[380172083,1755593298621,-400.0,0.00030136,120]
[380172084,1755593298659,-400.0,0.00030136,120]
[380172085,1755593298698,-400.0,0.00030136,120]
[380172086,1755593298736,-400.0,0.00030136,120]
[380172087,1755593298775,-963.86,0.00030136,120]
[380172088,1755593298815,-1695.92,0.00030136,120]
[380172089,1755593298856,-400.0,0.00030136,120]
[380172090,1755593298895,-1047.58,0.00030136,120]
[380172091,1755593298939,-400.0,0.00030136,120]
[380172092,1755593298985,-817.17,0.00030136,120]
[380172093,1755593299023,-400.0,0.00030136,120]
[380172094,1755593299059,-400.0,0.00030136,120]
[380172095,1755593299096,-400.0,0.00030136,120]
[380172096,1755593299134,-850.0,0.00030136,120]
[380172097,1755593299176,-400.0,0.00030136,120]
[380172098,1755593299215,-400.0,0.00030136,120]
[380172099,1755593299254,-400.0,0.00030136,120]
[380172100,1755593299294,-400.0,0.00030136,120]
[380172101,1755593299335,-400.0,0.00030136,120]
[380172102,1755593299374,-1839.73,0.00030136,120]
[380172103,1755593299411,-477.60151184,0.00030136,120]
[380172104,1755593299450,-400.0,0.00030136,120]
[380172105,1755593299487,-400.0,0.00030136,120]
[380172106,1755593299541,-408.43272269,0.00030136,120]
[380172107,1755593299581,-400.0,0.00030136,120]
[380172108,1755593299621,-400.0,0.00030136,120]
[380172109,1755593299658,-400.0,0.00030136,120]
[380172110,1755593299695,-400.0,0.00030136,120]
[380172111,1755593299732,-2012.25,0.00030136,120]
[380172112,1755593300301,-400.0,0.00030136,120]
[380172113,1755593300337,-400.0,0.00030136,120]
[380172114,1755593300374,-518.87,0.00030136,120]
[380172115,1755593300412,-400.0,0.00030136,120]
[380172116,1755593300448,-1581.54,0.00030136,120]
[380172117,1755593300483,-464.84,0.00030136,120]
[380172118,1755593300521,-400.0,0.00030136,120]
[380172119,1755593300556,-564.03,0.00030136,120]
[380172120,1755593300591,-426.1,0.00030136,120]
[380172121,1755593300625,-400.0,0.00030136,120]
[380172122,1755593300660,-400.0,0.00030136,120]
[380172123,1755593300693,-400.0,0.00030136,120]
[380172124,1755593300730,-400.0,0.00030136,120]
[380172125,1755593300767,-400.0,0.00030136,120]
[380172126,1755593300808,-400.0,0.00030136,120]
[380172127,1755593300845,-400.0,0.00030136,120]
[380172128,1755593300887,-1199.49,0.00030136,120]
[380172129,1755593300927,-400.0,0.00030136,120]
[380172130,1755593300964,-400.0,0.00030136,120]
[380172131,1755593300999,-1786.48,0.00030136,120]
[380172132,1755593301035,-400.0,0.00030136,120]
[380172133,1755593301071,-443.74,0.00030136,120]
[380172134,1755593301109,-738.8,0.00030136,120]
[380172135,1755593301146,-400.0,0.00030136,120]
[380172136,1755593301183,-400.0,0.00030136,120]
[380172137,1755593301219,-400.0,0.00030136,120]
[380172138,1755593301254,-537.32,0.00030136,120]
[380172139,1755593301289,-1070.65,0.00030136,120]
[380172140,1755593301325,-400.0,0.00030136,120]
[380172141,1755593301360,-400.0,0.00030136,120]
[380172142,1755593301394,-795.54,0.00030136,120]
[380172143,1755593301427,-400.0,0.00030136,120]
[380172144,1755593301462,-499.53,0.00030136,120]
[380172145,1755593301497,-1355.19,0.00030136,120]
[380172146,1755593301530,-400.0,0.00030136,120]
[380172147,1755593301570,-1390.48,0.00030136,120]
[380172148,1755593301607,-491.0,0.00030136,120]
[380172149,1755593301644,-1702.32,0.00030136,120]
[380172150,1755593301681,-941.13,0.00030136,120]
[380172151,1755593301720,-400.0,0.00030136,30]
[380172152,1755593301757,-1064.09,0.00030136,120]
[380172153,1755593301793,-400.0,0.00030136,120]
[380172154,1755593301827,-400.0,0.00030136,120]
[380172155,1755593301862,-400.0,0.00030136,120]
[380172156,1755593301896,-1299.83,0.00030136,120]
[380172157,1755593301931,-1105.35,0.00030136,120]
[380172158,1755593301969,-400.0,0.00030136,120]
[380172159,1755593302005,-400.0,0.00030136,120]
[380172160,1755593302041,-400.0,0.00030136,120]
[380172161,1755593302079,-400.0,0.00030136,120]
[380172162,1755593302118,-400.0,0.00030136,120]
[380172163,1755593302156,-464.6,0.00030136,120]
[380172164,1755593302195,-400.0,0.00030136,120]
[380172165,1755593302238,-959.67,0.00030136,120]
[380172166,1755593302277,-847.17,0.00030136,120]
[380172167,1755593302316,-561.14,0.00030136,120]
[380172168,1755593302355,-400.0,0.00030136,120]
[380172169,1755593302394,-400.0,0.00030136,120]
[380172170,1755593302443,-400.0,0.00030136,120]
[380172171,1755593302486,-400.0,0.00030136,120]
[380172172,1755593302533,-847.04,0.00030136,120]
[380172173,1755593302570,-400.0,0.00030136,120]
[380172174,1755593302606,-786.23,0.00030136,120]
[380172175,1755593302641,-915.82,0.00030136,120]
[380172176,1755593302677,-651.18,0.00030136,120]
[380172177,1755593302739,-400.0,0.00030136,120]
[380172178,1755593303070,-2133.9,0.00030136,120]
[380172179,1755593303369,-400.0,0.00030136,120]
[380172180,1755593303750,-941.38,0.00030136,120]
[380172181,1755593304031,-400.0,0.00030136,120]
[380172182,1755593304078,-701.84,0.00030136,120]
[380172183,1755593304118,-400.0,0.00030136,120]
[380172184,1755593304158,-400.0,0.00030136,120]
[380172185,1755593304199,-647.43,0.00030136,120]
[380172186,1755593304245,-987.11,0.00030136,120]
[380172187,1755593304292,-2140.02,0.00030136,120]
[380172188,1755593304331,-400.0,0.00030136,120]
[380172189,1755593304603,-400.0,0.00030136,120]
[380172190,1755593304640,-400.0,0.00030136,120]
[380172191,1755593304676,-400.0,0.00030136,120]
[380172192,1755593304712,-512.69914008,0.00030136,120]
[380172193,1755593304748,-857.16,0.00030136,120]
[380172194,1755593304786,-1414.09,0.00030136,120]
[380172195,1755593304823,-473.76,0.00030136,120]
[380172196,1755593304859,-1554.18,0.00030136,120]
[380172197,1755593304896,-1308.53,0.00030136,120]
[380172198,1755593304931,-400.0,0.00030136,120]
[380172199,1755593304970,-400.0,0.00030136,120]
[380172200,1755593305008,-300.0,0.00030136,120]
[380172201,1755593305045,-400.0,0.00030136,120]
[380172202,1755593305081,-916.56,0.00030136,120]
[380172203,1755593305118,-592.74,0.00030136,120]
[380172204,1755593305163,-400.0,0.00030136,120]
[380172205,1755593305202,-2307.41,0.00030136,120]
[380172206,1755593305239,-2000.0,0.00030136,30]
[380172207,1755593305276,-982.11,0.00030136,120]
[380172208,1755593305314,-2489.98,0.00030136,120]
[380172209,1755593305350,-400.0,0.00030136,120]
[380172210,1755593305389,-400.0,0.00030136,120]
[380172211,1755593305426,-400.0,0.00030136,120]
[380172212,1755593305464,-400.0,0.00030136,120]
[380172213,1755593305510,-400.0,0.00030136,120]
[380172214,1755593305549,-784.83,0.00030136,120]
[380172215,1755593305592,-400.0,0.00030136,120]
[380172216,1755593305634,-499.4,0.00030136,120]
[380172217,1755593305677,-1604.38,0.00030136,120]
[380172218,1755593305720,-400.0,0.00030136,120]
[380172219,1755593305764,-2442.79,0.00030136,120]
[380172220,1755593305801,-400.0,0.00030136,120]
[380172221,1755593305838,-487.12,0.00030136,120]
[380172222,1755593305874,-400.0,0.00030136,120]
[380172223,1755593305912,-400.0,0.00030136,120]
[380172224,1755593305949,-400.0,0.00030136,120]
[380172225,1755593305985,-1912.44,0.00030136,120]
[380172226,1755593306022,-400.0,0.00030136,120]
[380172227,1755593306061,-400.0,0.00030136,120]
[380172228,1755593306102,-416.6,0.00030136,120]
[380172229,1755593306143,-922.78,0.00030136,120]
[380172230,1755593306185,-936.27,0.00030136,120]
[380172231,1755593306231,-1833.84,0.00030136,120]
[380172232,1755593306276,-400.0,0.00030136,90]
[380172233,1755593306320,-444.37,0.00030136,120]
[380172234,1755593306362,-400.0,0.00030136,120]
[380172235,1755593306400,-400.0,0.00030136,120]
[380172236,1755593306444,-400.0,0.00030136,120]
[380172237,1755593306480,-400.0,0.00030136,120]
[380172238,1755593306519,-400.0,0.00030136,120]
[380172239,1755593306556,-565.12,0.00030136,120]
[380172240,1755593306596,-333.41313365,0.00030136,120]
[380172241,1755593306631,-440.76,0.00030136,120]
[380172242,1755593306665,-400.0,0.00030136,120]
[380172243,1755593306701,-400.0,0.00030136,120]
[380172244,1755593306743,-400.0,0.00030136,120]
[380172245,1755593306785,-1296.75,0.00030136,120]
[380172246,1755593306827,-2104.13,0.00030136,120]
[380172247,1755593306874,-812.39,0.00030136,120]
[380172248,1755593306926,-400.0,0.00030136,120]
[380172249,1755593306964,-1626.63,0.00030136,120]
[380172250,1755593307000,-723.04,0.00030136,120]
[380172251,1755593307035,-1192.71,0.00030136,120]
[380172252,1755593307068,-400.0,0.00030136,120]
[380172253,1755593307103,-400.0,0.00030136,120]
[380172254,1755593307140,-1199.62,0.00030136,120]
[380172255,1755593307177,-400.0,0.00030136,120]
[380172256,1755593307215,-455.68,0.00030136,120]
[380172257,1755593307253,-858.6,0.00030136,120]
[380172258,1755593307291,-400.0,0.00030136,120]
[380172259,1755593307330,-400.0,0.00030136,120]
[380172260,1755593307369,-1273.14,0.00030136,120]
[380172261,1755593307406,-1749.61,0.00030136,120]
[380172262,1755593307441,-400.0,0.00030136,120]
[380172263,1755593307477,-1391.9,0.00030136,120]
[380172264,1755593307723,-770.27,0.00030136,120]
[380172265,1755593307760,-563.53,0.00030136,120]
[380172266,1755593307796,-1100.77,0.00030136,120]
[380172267,1755593307832,-400.0,0.00030136,120]
[380172268,1755593307865,-2152.24,0.00030136,120]
[380172269,1755593307900,-2659.16,0.00030136,120]
[380172270,1755593307934,-400.0,0.00030136,120]
[380172271,1755593307970,-972.41,0.00030136,120]
[380172272,1755593308005,-400.0,0.00030136,120]
[380172273,1755593308044,-400.0,0.00030136,120]
[380172274,1755593308086,-400.0,0.00030136,120]
[380172275,1755593308129,-1355.82,0.00030136,120]
[380172276,1755593308170,-565.36,0.00030136,120]
[380172277,1755593308208,-2801.41,0.00030136,120]
[380172278,1755593308245,-1321.24,0.00030136,120]
[380172279,1755593308284,-400.0,0.00030136,120]
[380172280,1755593308323,-494.66,0.00030136,120]
[380172281,1755593308361,-400.0,0.00030136,120]
[380172282,1755593308405,-1285.4,0.00030136,120]
[380172283,1755593308445,-653.71,0.00030136,120]
[380172284,1755593308482,-786.99,0.00030136,120]
[380172285,1755593308525,-400.0,0.00030136,120]
[380172286,1755593308562,-400.0,0.00030136,120]